[Event "Dutch Open-ch 2019"]
[Site "Dieren"]
[Date "2019.07.23"]
[Round "1.8"]
[White "Vrolijk, Liam"]
[Black "Kazarian, Anna-Maja"]
[Result "1-0"]
[ECO "A45"]
[WhiteElo "2478"]
[BlackElo "2142"]
[Annotator "ChessBase"]
[PlyCount "55"]
[EventDate "2019.07.23"]
[EventType "swiss"]
[EventCountry "NED"]
[SourceTitle "playchess.com"]
[Source "ChessBase"]
[SourceQuality "1"]
[TimeControl "40/5400+30:1800+30"]

1. d4 {[%emt 0:00:00]} Nf6 {[%emt 0:00:00]} 2. Bg5 {[%emt 0:00:27]} e6 {[%emt 0:05:21]} 3. e4 {[%emt 0:01:29]} Be7 {[%emt 0:00:21]} 4. Bd3 {[%emt 0:05:31]} d5 {[%emt 0:04:19]} 5. e5 {[%emt 0:04:24]} Nfd7 {[%emt 0:00:12]} 6. Bxe7 {[%emt 0:06:16]} Qxe7 {[%emt 0:00:04]} 7. c3 {[%emt 0:00:19]} c5 {[%emt 0:00:30]} 8. Ne2 {[%emt 0:03:33]} Nc6 {[%emt 0:05:13]} 9. O-O {[%emt 0:01:38]} f6 {[%emt 0:21:38]} 10. f4 {[%emt 0:06:57]} cxd4 {[%emt 0:04:37]} 11. cxd4 {[%emt 0:01:28]} Qb4 {[%emt 0:01:40]} 12. Nbc3 {[%emt 0:15:04]} Nxd4 {[%emt 0:05:58]} 13. Nxd4 {[%emt 0:01:00]} Qxd4+ {[%emt 0:00:05]} 14. Kh1 {[%emt 0:00:09]} Ke7 {[%emt 0:30:48]} 15. Nb5 {[%emt 0:03:36]} Qb6 {[%emt 0:00:52]} 16. Qg4 {[%emt 0:03:46]} g6 {[%emt 0:01:59]} 17. Qh4 {[%emt 0:04:58]} a6 {[%emt 0:03:18]} 18. Nd6 {[%emt 0:04:21]} Qd4 {[%emt 0:00:03]} 19. Rad1 {[%emt 0:03:18]} Nxe5 {[%emt 0:08:32]} 20. Be4 {[%emt 0:02:22]} Qxb2 {[%emt 0:00:35]} 21. fxe5 {[%emt 0:00:44]} Qxe5 {[%emt 0:00:12]} 22. Nxc8+ {[%emt 0:00:15]} Raxc8 {[%emt 0:00:05]} 23. Bxd5 {[%emt 0:00:11]} Rcd8 {[%emt 0:03:05]} 24. Rde1 {[%emt 0:00:35]} Qb2 {[%emt 0:01:45]} 25. Rxe6+ {[%emt 0:00:25]} Kd7 {[%emt 0:00:05]} 26. Rexf6 {[%emt 0:00:52]} Kc8 {[%emt 0:00:34]} 27. Qf4 {[%emt 0:00:39]} Rde8 {[%emt 0:01:01]} 28. Rc1+ {[%emt 0:00:15]} 1-0

[Event "Dutch Open-ch 2019"]
[Site "Dieren"]
[Date "2019.07.23"]
[Round "1.9"]
[White "Bus, Tom"]
[Black "Hausrath, Daniel"]
[Result "0-1"]
[ECO "C41"]
[WhiteElo "2138"]
[BlackElo "2468"]
[Annotator "ChessBase"]
[PlyCount "98"]
[EventDate "2019.07.23"]
[EventType "swiss"]
[EventCountry "NED"]
[SourceTitle "playchess.com"]
[Source "ChessBase"]
[SourceQuality "1"]
[TimeControl "40/5400+30:1800+30"]

1. e4 {[%emt 0:00:00]} d6 {[%emt 0:00:29]} 2. d4 {[%emt 0:00:04]} Nf6 {[%emt 0:00:06]} 3. Nc3 {[%emt 0:00:12]} e5 {[%emt 0:00:05]} 4. Nf3 {[%emt 0:00:50]} Nbd7 {[%emt 0:00:18]} 5. Bc4 {[%emt 0:01:01]} Be7 {[%emt 0:02:14]} 6. O-O {[%emt 0:02:19]} O-O {[%emt 0:00:05]} 7. Qe2 {[%emt 0:00:49]} c6 {[%emt 0:02:18]} 8. a4 {[%emt 0:02:29]} a6 {[%emt 0:01:27]} 9. dxe5 {[%emt 0:03:16]} Nxe5 {[%emt 0:04:16]} 10. Nxe5 {[%emt 0:01:37]} dxe5 {[%emt 0:00:05]} 11. Rd1 {[%emt 0:06:25]} Qc7 {[%emt 0:03:45]} 12. h3 {[%emt 0:01:28]} b6 {[%emt 0:04:04]} 13. Be3 {[%emt 0:07:42]} Bb7 {[%emt 0:07:38]} 14. a5 {[%emt 0:07:15]} b5 {[%emt 0:01:50]} 15. Bb6 {[%emt 0:00:37]} Qc8 {[%emt 0:01:25]} 16. Bb3 {[%emt 0:10:17]} Nd7 {[%emt 0:02:46]} 17. Be3 {[%emt 0:07:30]} Nc5 {[%emt 0:01:41]} 18. Bxc5 {[%emt 0:07:42]} Bxc5 {[%emt 0:00:37]} 19. Na2 {[%emt 0:00:53]} Qc7 {[%emt 0:03:31]} 20. Nc1 {[%emt 0:02:30]} Rad8 {[%emt 0:03:51]} 21. Nd3 {[%emt 0:04:14]} Bd6 {[%emt 0:15:21]} 22. Qe3 {[%emt 0:11:17]} c5 {[%emt 0:08:26]} 23. c4 {[%emt 0:03:02]} Be7 {[%emt 0:02:18]} 24. cxb5 {[%emt 0:08:36]} axb5 {[%emt 0:00:24]} 25. a6 {[%emt 0:00:11]} Ba8 {[%emt 0:00:30]} 26. Bd5 {[%emt 0:01:10]} c4 {[%emt 0:07:15]} 27. Ne1 {[%emt 0:00:54]} Bc5 {[%emt 0:01:48]} 28. Qg3 {[%emt 0:03:13]} Bxd5 {[%emt 0:02:49]} 29. exd5 {[%emt 0:00:49]} f6 {[%emt 0:06:33]} 30. Nc2 {[%emt 0:02:08]} Rd6 {[%emt 0:03:04]} 31. b3 {[%emt 0:02:14]} Ra8 {[%emt 0:02:34]} 32. b4 {[%emt 0:00:26]} Bb6 {[%emt 0:00:48]} 33. Qf3 {[%emt 0:00:47]} Qd7 {[%emt 0:01:54]} 34. g4 {[%emt 0:00:37]} Bd8 {[%emt 0:01:26]} 35. Ne3 {[%emt 0:01:38]} g6 {[%emt 0:00:32]} 36. Qe4 {[%emt 0:00:54]} Rdxa6 {[%emt 0:02:34]} 37. Rxa6 {[%emt 0:00:16]} Rxa6 {[%emt 0:00:02]} 38. Kg2 {[%emt 0:00:43]} Qd6 {[%emt 0:01:35]} 39. h4 {[%emt 0:01:25]} Bb6 {[%emt 0:02:37]} 40. h5 {[%emt 0:00:00]} Kg7 {[%emt 0:00:37]} 41. hxg6 {[%emt 0:30:17]} hxg6 {[%emt 0:31:42]} 42. Nf5+ {[%emt 0:00:00]} gxf5 {[%emt 0:00:00]} 43. gxf5 {[%emt 0:00:00]} Ra2 {[%emt 0:00:00]} 44. Qg4+ {[%emt 0:00:00]} Kf8 {[%emt 0:00:00]} 45. Qg6 {[%emt 0:00:00]} Qe7 {[%emt 0:00:00]} 46. d6 {[%emt 0:00:00]} Qb7+ {[%emt 0:00:00]} 47. Kg3 {[%emt 0:00:16]} Bxf2+ {[%emt 0:00:00]} 48. Kg4 {[%emt 0:02:18]} Qg2+ {[%emt 0:00:00]} 49. Kh5 {[%emt 0:00:09]} Qh3# {[%emt 0:00:00]} 0-1

[Event "Dutch Open-ch 2019"]
[Site "Dieren"]
[Date "2019.07.23"]
[Round "1.10"]
[White "Lai, Hing Ting"]
[Black "Vogel, Jaap"]
[Result "1-0"]
[ECO "A93"]
[WhiteElo "2460"]
[BlackElo "2126"]
[Annotator "ChessBase"]
[PlyCount "53"]
[EventDate "2019.07.23"]
[EventType "swiss"]
[EventCountry "NED"]
[SourceTitle "playchess.com"]
[Source "ChessBase"]
[SourceQuality "1"]
[TimeControl "40/5400+30:1800+30"]

1. d4 {[%emt 0:00:00]} e6 {[%emt 0:00:00]} 2. Nf3 {[%emt 0:00:00]} f5 {[%emt 0:00:00]} 3. g3 {[%emt 0:00:00]} Nf6 {[%emt 0:00:04]} 4. Bg2 {[%emt 0:00:06]} d5 {[%emt 0:01:27]} 5. O-O {[%emt 0:00:11]} Be7 {[%emt 0:01:30]} 6. c4 {[%emt 0:00:33]} O-O {[%emt 0:00:08]} 7. Qc2 {[%emt 0:00:59]} c6 {[%emt 0:01:27]} 8. b3 {[%emt 0:01:35]} Ne4 {[%emt 0:03:02]} 9. Bb2 {[%emt 0:00:52]} Bd7 {[%emt 0:10:47]} 10. Ne5 {[%emt 0:01:50]} Be8 {[%emt 0:04:15]} 11. Nd3 {[%emt 0:03:05]} g5 {[%emt 0:05:02]} 12. Nd2 {[%emt 0:06:47]} Nd7 {[%emt 0:03:47]} 13. f3 {[%emt 0:07:01]} Nef6 {[%emt 0:09:38]} 14. e4 {[%emt 0:08:04]} fxe4 {[%emt 0:02:09]} 15. fxe4 {[%emt 0:00:06]} Bg6 {[%emt 0:00:16]} 16. Nf2 {[%emt 0:00:24]} c5 {[%emt 0:09:46]} 17. Qd1 {[%emt 0:14:30]} cxd4 {[%emt 0:08:01]} 18. exd5 {[%emt 0:03:13]} exd5 {[%emt 0:02:55]} 19. Nf3 {[%emt 0:07:37]} dxc4 {[%emt 0:06:56]} 20. Qxd4 {[%emt 0:06:56]} Bc5 {[%emt 0:07:26]} 21. Qxc4+ {[%emt 0:01:20]} Bf7 {[%emt 0:00:13]} 22. Qd3 {[%emt 0:01:56]} h6 {[%emt 0:11:00]} 23. Qf5 {[%emt 0:08:16]} Qb6 {[%emt 0:03:32]} 24. Nxg5 {[%emt 0:00:37]} Rae8 {[%emt 0:02:29]} 25. Kh1 {[%emt 0:03:04]} Re2 {[%emt 0:01:46]} 26. Bxf6 {[%emt 0:01:34]} Nxf6 {[%emt 0:01:15]} 27. Ng4 {[%emt 0:00:08]} 1-0

[Event "Dutch Open-ch 2019"]
[Site "Dieren"]
[Date "2019.07.23"]
[Round "1.11"]
[White "Munshi, Aditya"]
[Black "Buckels, Valentin"]
[Result "1/2-1/2"]
[ECO "C24"]
[WhiteElo "2125"]
[BlackElo "2451"]
[Annotator "ChessBase"]
[PlyCount "51"]
[EventDate "2019.07.23"]
[EventType "swiss"]
[EventCountry "NED"]
[SourceTitle "playchess.com"]
[Source "ChessBase"]
[SourceQuality "1"]
[TimeControl "40/5400+30:1800+30"]

1. e4 {[%emt 0:00:00]} e5 {[%emt 0:00:00]} 2. Bc4 {[%emt 0:00:44]} Nf6 {[%emt 0:00:13]} 3. d3 {[%emt 0:00:01]} c6 {[%emt 0:00:40]} 4. Nf3 {[%emt 0:00:20]} d5 {[%emt 0:00:11]} 5. Bb3 {[%emt 0:00:07]} Bd6 {[%emt 0:01:01]} 6. exd5 {[%emt 0:01:13]} cxd5 {[%emt 0:04:07]} 7. Bg5 {[%emt 0:03:34]} e4 {[%emt 0:16:08]} 8. dxe4 {[%emt 0:21:17]} dxe4 {[%emt 0:00:18]} 9. Nfd2 {[%emt 0:00:33]} Be5 {[%emt 0:13:19]} 10. Nc3 {[%emt 0:04:11]} Bxc3 {[%emt 0:11:16]} 11. bxc3 {[%emt 0:00:13]} O-O {[%emt 0:01:18]} 12. O-O {[%emt 0:06:02]} Bf5 {[%emt 0:04:18]} 13. Nc4 {[%emt 0:23:29]} Na6 {[%emt 0:12:53]} 14. Qd6 {[%emt 0:13:02]} Be6 {[%emt 0:03:56]} 15. Rad1 {[%emt 0:04:40]} Bg4 {[%emt 0:06:49]} 16. Rd4 {[%emt 0:05:43]} Be2 {[%emt 0:12:18]} 17. Qg3 {[%emt 0:01:54]} Qe7 {[%emt 0:04:25]} 18. Nd6 {[%emt 0:01:24]} Bxf1 {[%emt 0:02:17]} 19. Kxf1 {[%emt 0:05:52]} Rae8 {[%emt 0:03:06]} 20. Nf5 {[%emt 0:02:31]} Qe5 {[%emt 0:00:21]} 21. Nh6+ {[%emt 0:01:03]} Kh8 {[%emt 0:00:00]} 22. Qxe5 {[%emt 0:02:32]} Rxe5 {[%emt 0:00:02]} 23. Bxf6 {[%emt 0:01:05]} gxf6 {[%emt 0:00:16]} 24. Nxf7+ {[%emt 0:00:00]} Rxf7 {[%emt 0:00:11]} 25. Bxf7 {[%emt 0:00:00]} Re7 {[%emt 0:00:47]} 26. Bc4 {[%emt 0:00:58]} 1/2-1/2

[Event "Dutch Open-ch 2019"]
[Site "Dieren"]
[Date "2019.07.23"]
[Round "1.12"]
[White "Das, Arghyadip"]
[Black "Binnendijk, Ferdinand"]
[Result "1-0"]
[ECO "B07"]
[WhiteElo "2439"]
[BlackElo "2122"]
[Annotator "NA"]
[PlyCount "53"]
[EventDate "2019.07.23"]
[EventType "swiss"]
[EventCountry "NED"]
[SourceTitle "playchess.com"]
[Source "ChessBase"]
[SourceQuality "1"]
[TimeControl "40/5400+30:1800+30"]

1. e4 {[%emt 0:00:00]} d6 {[%emt 0:00:00]} 2. d4 {[%emt 0:00:16]} Nf6 {[%emt 0:00:00]} 3. Nc3 {[%emt 0:00:12]} Nbd7 {[%emt 0:00:00]} 4. g3 {[%emt 0:01:22]} e5 {[%emt 0:00:37]} 5. Nge2 {[%emt 0:00:31]} Be7 {[%emt 0:04:26]} 6. Bg2 {[%emt 0:00:15]} O-O {[%emt 0:00:35]} 7. O-O {[%emt 0:00:05]} c6 {[%emt 0:00:54]} 8. a4 {[%emt 0:02:13]} a5 {[%emt 0:00:51]} 9. h3 {[%emt 0:01:14]} Re8 {[%emt 0:03:05]} 10. Be3 {[%emt 0:07:48]} Bf8 {[%emt 0:07:10]} 11. g4 {[%emt 1:21:34]} exd4 {[%emt 0:12:08]} 12. Bxd4 {[%emt 0:00:00]} Nc5 {[%emt 0:01:08]} 13. Ng3 {[%emt 0:00:00]} Ra6 {[%emt 0:19:21]} 14. Qd2 {[%emt 0:00:00]} d5 {[%emt 0:07:11]} 15. Bxf6 {[%emt 0:00:00]} Qxf6 {[%emt 0:00:19]} 16. exd5 {[%emt 0:00:00]} Rb6 {[%emt 0:06:38]} 17. b3 {[%emt 0:00:00]} Qh4 {[%emt 0:14:29]} 18. dxc6 {[%emt 0:00:00]} bxc6 {[%emt 0:00:20]} 19. Rad1 {[%emt 0:00:00]} Be6 {[%emt 0:07:41]} 20. Nce2 {[%emt 0:00:00]} Nb7 {[%emt 0:04:18]} 21. Nd4 {[%emt 0:00:00]} Bd5 {[%emt 0:03:14]} 22. Ndf5 {[%emt 0:00:00]} Qf6 {[%emt 0:01:05]} 23. Bxd5 {[%emt 0:00:00]} cxd5 {[%emt 0:00:08]} 24. Qxd5 {[%emt 0:00:00]} g6 {[%emt 0:01:26]} 25. Ne3 {[%emt 0:00:00]} Re5 {[%emt 0:02:00]} 26. Qg2 {[%emt 0:00:00]} Rb4 {[%emt 0:01:57]} 27. Nd5 {[%emt 0:00:00]} 1-0

[Event "Dutch Open-ch 2019"]
[Site "Dieren"]
[Date "2019.07.23"]
[Round "1.13"]
[White "De Boer, Bas"]
[Black "Lahaye, Rick"]
[Result "0-1"]
[ECO "A30"]
[WhiteElo "2117"]
[BlackElo "2421"]
[Annotator "NA"]
[PlyCount "66"]
[EventDate "2019.07.23"]
[EventType "swiss"]
[EventCountry "NED"]
[SourceTitle "playchess.com"]
[Source "ChessBase"]
[SourceQuality "1"]
[TimeControl "40/5400+30:1800+30"]

1. Nf3 {[%emt 0:00:00]} Nf6 {[%emt 0:00:24]} 2. c4 {[%emt 0:00:00]} e6 {[%emt 0:05:35]} 3. Nc3 {[%emt 0:00:59]} b6 {[%emt 0:04:58]} 4. g3 {[%emt 0:02:54]} Bb7 {[%emt 0:03:59]} 5. Bg2 {[%emt 0:00:19]} c5 {[%emt 0:00:46]} 6. d4 {[%emt 0:04:58]} cxd4 {[%emt 0:00:05]} 7. Qxd4 {[%emt 0:00:04]} d6 {[%emt 0:00:06]} 8. O-O {[%emt 0:01:13]} Be7 {[%emt 0:00:27]} 9. b3 {[%emt 0:04:56]} Nc6 {[%emt 0:13:14]} 10. Qf4 {[%emt 0:04:12]} a6 {[%emt 0:13:04]} 11. Bb2 {[%emt 0:03:55]} Qb8 {[%emt 0:08:34]} 12. Rad1 {[%emt 0:12:02]} O-O {[%emt 0:07:35]} 13. e4 {[%emt 0:07:54]} b5 {[%emt 0:04:56]} 14. cxb5 {[%emt 0:08:22]} axb5 {[%emt 0:00:25]} 15. Rfe1 {[%emt 0:00:12]} Nd7 {[%emt 0:12:11]} 16. Qc1 {[%emt 0:09:30]} Nde5 {[%emt 0:05:07]} 17. Nxe5 {[%emt 0:06:55]} dxe5 {[%emt 0:01:06]} 18. a4 {[%emt 0:03:48]} bxa4 {[%emt 0:08:56]} 19. Nxa4 {[%emt 0:00:24]} Ra5 {[%emt 0:00:30]} 20. Bf1 {[%emt 0:02:34]} Ba8 {[%emt 0:00:13]} 21. Bc4 {[%emt 0:03:11]} Ra7 {[%emt 0:01:07]} 22. Qa1 {[%emt 0:03:26]} Rc8 {[%emt 0:01:35]} 23. f4 {[%emt 0:01:06]} Bc5+ {[%emt 0:01:14]} 24. Kg2 {[%emt 0:02:38]} Bd4 {[%emt 0:00:02]} 25. Rd2 {[%emt 0:05:16]} Bxb2 {[%emt 0:00:29]} 26. Qxb2 {[%emt 0:00:24]} exf4 {[%emt 0:00:08]} 27. Nc5 {[%emt 0:06:34]} f3+ {[%emt 0:02:04]} 28. Kf1 {[%emt 0:00:27]} Ne5 {[%emt 0:01:46]} 29. Nxe6 {[%emt 0:00:50]} Re7 {[%emt 0:01:58]} 30. Nd4 {[%emt 0:03:07]} g6 {[%emt 0:00:01]} 31. Ba6 {[%emt 0:00:32]} Rce8 {[%emt 0:00:35]} 32. Bb5 {[%emt 0:01:37]} Rd8 {[%emt 0:00:01]} 33. Ba4 {[%emt 0:00:50]} Qc8 {[%emt 0:00:23]} 0-1

[Event "Dutch Open-ch 2019"]
[Site "Dieren"]
[Date "2019.07.23"]
[Round "1.14"]
[White "Bosboom, Manuel"]
[Black "Taal, Rieks"]
[Result "1-0"]
[ECO "D24"]
[WhiteElo "2418"]
[BlackElo "2115"]
[Annotator "NA"]
[PlyCount "53"]
[EventDate "2019.07.23"]
[EventType "swiss"]
[EventCountry "NED"]
[SourceTitle "playchess.com"]
[Source "ChessBase"]
[SourceQuality "1"]
[TimeControl "40/5400+30:1800+30"]

1. d4 {[%emt 0:00:00]} Nf6 {[%emt 0:00:00]} 2. Nf3 {[%emt 0:00:00]} d5 {[%emt 0:00:00]} 3. c4 {[%emt 0:00:37]} e6 {[%emt 0:00:00]} 4. Nc3 {[%emt 0:01:05]} dxc4 {[%emt 0:00:39]} 5. e4 {[%emt 0:11:20]} Bb4 {[%emt 0:04:15]} 6. Bxc4 {[%emt 0:01:56]} Nxe4 {[%emt 0:00:10]} 7. O-O {[%emt 0:01:45]} Nf6 {[%emt 0:00:39]} 8. Bg5 {[%emt 0:17:15]} Be7 {[%emt 0:04:39]} 9. Qe2 {[%emt 0:04:58]} O-O {[%emt 0:06:51]} 10. Rad1 {[%emt 0:00:29]} c6 {[%emt 0:03:50]} 11. Rfe1 {[%emt 0:12:39]} Nbd7 {[%emt 0:12:38]} 12. h4 {[%emt 0:10:10]} h6 {[%emt 0:14:18]} 13. Bc1 {[%emt 0:16:36]} Nd5 {[%emt 0:02:32]} 14. Bd3 {[%emt 0:01:48]} Re8 {[%emt 0:04:14]} 15. Bb1 {[%emt 0:01:05]} Nf8 {[%emt 0:00:59]} 16. Ne5 {[%emt 0:01:52]} Nxc3 {[%emt 0:08:11]} 17. bxc3 {[%emt 0:00:05]} Bxh4 {[%emt 0:00:21]} 18. Qh5 {[%emt 0:00:47]} Qe7 {[%emt 0:03:33]} 19. Re4 {[%emt 0:04:12]} Bf6 {[%emt 0:05:23]} 20. Rg4 {[%emt 0:01:56]} Bxe5 {[%emt 0:04:59]} 21. dxe5 {[%emt 0:00:27]} Rd8 {[%emt 0:03:52]} 22. Rxd8 {[%emt 0:04:33]} Qxd8 {[%emt 0:00:07]} 23. Bxh6 {[%emt 0:00:24]} Qd1+ {[%emt 0:02:58]} 24. Kh2 {[%emt 0:00:03]} Qxb1 {[%emt 0:00:07]} 25. Rxg7+ {[%emt 0:00:14]} Kh8 {[%emt 0:00:05]} 26. Qxf7 {[%emt 0:00:18]} Qf5 {[%emt 0:01:09]} 27. Rg8# {[%emt 0:00:17]} 1-0

[Event "Dutch Open-ch 2019"]
[Site "Dieren"]
[Date "2019.07.23"]
[Round "1.15"]
[White "Zwirs, Jasper"]
[Black "Maatman, Nick"]
[Result "0-1"]
[ECO "C16"]
[WhiteElo "2110"]
[BlackElo "2407"]
[Annotator "NA"]
[PlyCount "54"]
[EventDate "2019.07.23"]
[EventType "swiss"]
[EventCountry "NED"]
[SourceTitle "playchess.com"]
[Source "ChessBase"]
[SourceQuality "1"]
[TimeControl "40/5400+30:1800+30"]

1. e4 {[%emt 0:00:00]} e6 {[%emt 0:00:00]} 2. d4 {[%emt 0:00:00]} d5 {[%emt 0:00:00]} 3. Nc3 {[%emt 0:01:02]} Bb4 {[%emt 0:00:00]} 4. e5 {[%emt 0:00:57]} Ne7 {[%emt 0:00:00]} 5. a3 {[%emt 0:00:55]} Bxc3+ {[%emt 0:00:00]} 6. bxc3 {[%emt 0:00:02]} b6 {[%emt 0:00:17]} 7. Nf3 {[%emt 0:13:51]} Ba6 {[%emt 0:22:30]} 8. Bxa6 {[%emt 0:16:27]} Nxa6 {[%emt 0:00:51]} 9. O-O {[%emt 0:00:41]} Rc8 {[%emt 0:12:15]} 10. Ng5 {[%emt 0:08:41]} h6 {[%emt 0:05:31]} 11. Qh5 {[%emt 0:16:04]} O-O {[%emt 0:05:07]} 12. Nh3 {[%emt 0:05:01]} Qe8 {[%emt 0:15:36]} 13. Qe2 {[%emt 0:09:14]} Qa4 {[%emt 0:04:53]} 14. Be3 {[%emt 0:10:39]} c5 {[%emt 0:01:30]} 15. Rac1 {[%emt 0:03:41]} cxd4 {[%emt 0:02:49]} 16. cxd4 {[%emt 0:00:34]} Rc3 {[%emt 0:03:27]} 17. Qg4 {[%emt 0:03:25]} Nf5 {[%emt 0:01:53]} 18. Nf4 {[%emt 0:00:42]} Rxe3 {[%emt 0:02:37]} 19. Nxe6 {[%emt 0:01:29]} Re4 {[%emt 0:10:00]} 20. Qxf5 {[%emt 0:00:05]} fxe6 {[%emt 0:00:03]} 21. Qxe6+ {[%emt 0:00:05]} Kh8 {[%emt 0:00:45]} 22. Qe7 {[%emt 0:02:56]} Rc8 {[%emt 0:04:31]} 23. c3 {[%emt 0:00:22]} Nc7 {[%emt 0:00:53]} 24. f4 {[%emt 0:01:27]} Qe8 {[%emt 0:01:05]} 25. Qb4 {[%emt 0:00:15]} Ne6 {[%emt 0:00:51]} 26. f5 {[%emt 0:00:37]} Nf4 {[%emt 0:00:18]} 27. Rce1 {[%emt 0:02:01]} Nd3 {[%emt 0:01:30]} 0-1

[Event "Dutch Open-ch 2019"]
[Site "Dieren"]
[Date "2019.07.23"]
[Round "1.16"]
[White "Neelotpal, Das"]
[Black "Van Baar, Esper"]
[Result "1-0"]
[ECO "B42"]
[WhiteElo "2406"]
[BlackElo "2108"]
[Annotator "NA"]
[PlyCount "75"]
[EventDate "2019.07.23"]
[EventType "swiss"]
[EventCountry "NED"]
[SourceTitle "playchess.com"]
[Source "ChessBase"]
[SourceQuality "1"]
[TimeControl "40/5400+30:1800+30"]

1. e4 {[%emt 0:00:00]} c5 {[%emt 0:00:00]} 2. Nf3 {[%emt 0:00:00]} d6 {[%emt 0:00:00]} 3. d4 {[%emt 0:00:00]} cxd4 {[%emt 0:00:00]} 4. Nxd4 {[%emt 0:00:00]} Nf6 {[%emt 0:00:00]} 5. Nc3 {[%emt 0:00:00]} a6 {[%emt 0:00:04]} 6. Bd3 {[%emt 0:00:03]} e6 {[%emt 0:06:48]} 7. O-O {[%emt 0:00:10]} Nbd7 {[%emt 0:02:17]} 8. Kh1 {[%emt 0:01:12]} b5 {[%emt 0:05:28]} 9. a4 {[%emt 0:00:11]} b4 {[%emt 0:13:41]} 10. Na2 {[%emt 0:01:06]} Bb7 {[%emt 0:01:26]} 11. Qe2 {[%emt 0:02:23]} Qc7 {[%emt 0:30:15]} 12. Bg5 {[%emt 0:19:21]} Be7 {[%emt 0:02:03]} 13. c3 {[%emt 0:06:39]} bxc3 {[%emt 0:00:47]} 14. Nxc3 {[%emt 0:00:17]} h6 {[%emt 0:05:45]} 15. Bh4 {[%emt 0:06:21]} O-O {[%emt 0:03:45]} 16. f3 {[%emt 0:03:13]} Ne5 {[%emt 0:01:40]} 17. Rac1 {[%emt 0:06:23]} Qa5 {[%emt 0:04:32]} 18. Bb1 {[%emt 0:01:43]} Qb4 {[%emt 0:08:44]} 19. Rfd1 {[%emt 0:02:15]} Rac8 {[%emt 0:01:14]} 20. Ba2 {[%emt 0:02:14]} Rfd8 {[%emt 0:07:03]} 21. Be1 {[%emt 0:46:59]} Qb6 {[%emt 0:00:22]} 22. a5 {[%emt 0:00:00]} Qa7 {[%emt 0:00:45]} 23. Bf2 {[%emt 0:00:00]} Qb8 {[%emt 0:00:29]} 24. f4 {[%emt 0:00:00]} Nc6 {[%emt 0:00:48]} 25. Nxc6 {[%emt 0:00:00]} Bxc6 {[%emt 0:00:24]} 26. Bb6 {[%emt 0:00:00]} Re8 {[%emt 0:00:15]} 27. Bc4 {[%emt 0:00:00]} Nxe4 {[%emt 0:02:06]} 28. Bxa6 {[%emt 0:00:00]} Nxc3 {[%emt 0:00:21]} 29. Rxc3 {[%emt 0:00:00]} Bb7 {[%emt 0:00:05]} 30. Rdc1 {[%emt 0:00:00]} d5 {[%emt 0:03:20]} 31. Bxb7 {[%emt 0:00:00]} Qxb7 {[%emt 0:00:04]} 32. Qb5 {[%emt 0:00:00]} d4 {[%emt 0:00:56]} 33. a6 {[%emt 0:01:25]} Qb8 {[%emt 0:00:30]} 34. Rxc8 {[%emt 0:00:42]} Rxc8 {[%emt 0:00:10]} 35. Rxc8+ {[%emt 0:00:03]} Qxc8 {[%emt 0:00:05]} 36. Bxd4 {[%emt 0:00:12]} Bf6 {[%emt 0:00:25]} 37. Bg1 {[%emt 0:00:18]} Qc1 {[%emt 0:00:57]} 38. Qb6 {[%emt 0:05:50]} 1-0

[Event "Dutch Open-ch 2019"]
[Site "Dieren"]
[Date "2019.07.23"]
[Round "1.17"]
[White "Van Helvoort, Rob"]
[Black "Van der Hagen, Loek"]
[Result "1-0"]
[ECO "B22"]
[WhiteElo "2104"]
[BlackElo "1988"]
[Annotator "NA"]
[PlyCount "59"]
[EventDate "2019.07.23"]
[EventType "swiss"]
[EventCountry "NED"]
[SourceTitle "playchess.com"]
[Source "ChessBase"]
[SourceQuality "1"]
[TimeControl "40/5400+30:1800+30"]

1. e4 {[%emt 0:00:00]} c5 {[%emt 0:00:00]} 2. c3 {[%emt 0:00:00]} Nf6 {[%emt 0:00:00]} 3. e5 {[%emt 0:00:00]} Nd5 {[%emt 0:00:00]} 4. d4 {[%emt 0:00:05]} cxd4 {[%emt 0:00:10]} 5. cxd4 {[%emt 0:00:34]} Nc6 {[%emt 0:00:19]} 6. Nf3 {[%emt 0:01:52]} e6 {[%emt 0:00:15]} 7. Bc4 {[%emt 0:00:41]} d6 {[%emt 0:00:26]} 8. exd6 {[%emt 0:00:49]} Bxd6 {[%emt 0:01:31]} 9. O-O {[%emt 0:00:46]} O-O {[%emt 0:00:23]} 10. Re1 {[%emt 0:01:08]} b6 {[%emt 0:06:31]} 11. Nc3 {[%emt 0:04:33]} Nxc3 {[%emt 0:02:18]} 12. bxc3 {[%emt 0:00:20]} Qc7 {[%emt 0:01:00]} 13. Bd3 {[%emt 0:02:09]} Bb7 {[%emt 0:02:33]} 14. Qc2 {[%emt 0:34:33]} h6 {[%emt 0:02:51]} 15. Qe2 {[%emt 0:05:23]} Ne7 {[%emt 0:03:23]} 16. c4 {[%emt 0:05:03]} Bxf3 {[%emt 0:05:12]} 17. Qxf3 {[%emt 0:00:02]} Bxh2+ {[%emt 0:00:22]} 18. Kh1 {[%emt 0:00:01]} Bd6 {[%emt 0:00:50]} 19. Bb2 {[%emt 0:04:37]} Rae8 {[%emt 0:11:40]} 20. Rac1 {[%emt 0:06:10]} Bb4 {[%emt 0:02:47]} 21. Re2 {[%emt 0:00:57]} Ng6 {[%emt 0:03:31]} 22. g3 {[%emt 0:00:35]} e5 {[%emt 0:11:17]} 23. a3 {[%emt 0:03:20]} Bd6 {[%emt 0:08:11]} 24. c5 {[%emt 0:01:51]} Be7 {[%emt 0:07:51]} 25. cxb6 {[%emt 0:10:05]} Qxb6 {[%emt 0:01:17]} 26. dxe5 {[%emt 0:01:34]} Bg5 {[%emt 0:19:21]} 27. Rc6 {[%emt 0:02:16]} Qa5 {[%emt 0:01:46]} 28. Qe4 {[%emt 0:03:39]} Rc8 {[%emt 0:07:12]} 29. Rxc8 {[%emt 0:05:01]} Rxc8 {[%emt 0:00:19]} 30. e6 {[%emt 0:06:56]} 1-0